[Event "*** Titled Tuesday Blitz"]
[Site "Chess.com"]
[Date "2020.12.29"]
[Round "6"]
[White "RobertoJBM"]
[Black "juancruzarias"]
[Result "0-1"]
[WhiteElo "2699"]
[BlackElo "2551"]
[TimeControl "180+1"]
[EndTime "11:03:20 PST"]
[Termination "juancruzarias won by resignation"]

1. d4 {[%clk 0:03:00.9]} 1... Nf6 {[%clk 0:02:59.5]} 2. c4 {[%clk 0:03:00.3]}
2... e6 {[%clk 0:03:00.2]} 3. Nc3 {[%clk 0:03:00.1]} 3... Bb4 {[%clk 0:02:59.1]}
4. Qc2 {[%clk 0:02:56.7]} 4... O-O {[%clk 0:02:58.7]} 5. a3 {[%clk 0:02:55.6]}
5... Bxc3+ {[%clk 0:02:59]} 6. Qxc3 {[%clk 0:02:56.5]} 6... b5 {[%clk
0:02:59.9]} 7. cxb5 {[%clk 0:02:51.5]} 7... c6 {[%clk 0:03:00.2]} 8. f3 {[%clk
0:02:50.1]} 8... Nd5 {[%clk 0:02:52.2]} 9. Qd2 {[%clk 0:02:45.6]} 9... f5 {[%clk
0:02:51.1]} 10. e3 {[%clk 0:02:38.1]} 10... cxb5 {[%clk 0:02:46.2]} 11. Bxb5
{[%clk 0:02:35.9]} 11... Qb6 {[%clk 0:02:45.8]} 12. Bc4 {[%clk 0:02:30.3]} 12...
Ba6 {[%clk 0:02:42.4]} 13. Ba2 {[%clk 0:01:51.7]} 13... f4 {[%clk 0:02:39.9]}
14. Bxd5 {[%clk 0:01:38.1]} 14... exd5 {[%clk 0:02:40.8]} 15. exf4 {[%clk
0:01:37.5]} 15... Nc6 {[%clk 0:02:40.5]} 16. Kf2 {[%clk 0:01:29]} 16... Rae8
{[%clk 0:02:30.8]} 17. Qc3 {[%clk 0:01:21.5]} 17... Nxd4 {[%clk 0:02:09.5]} 18.
Kg3 {[%clk 0:00:34.3]} 18... Nf5+ {[%clk 0:02:03.4]} 0-1

[Event "*** Titled Tuesday Blitz"]
[Site "Chess.com"]
[Date "2020.12.29"]
[Round "6"]
[White "Chuchofrio1"]
[Black "RamyresCoelho"]
[Result "1-0"]
[WhiteElo "2275"]
[BlackElo "2090"]
[TimeControl "180+1"]
[EndTime "11:03:39 PST"]
[Termination "Chuchofrio1 won by resignation"]

1. d4 {[%clk 0:03:00.9]} 1... Nf6 {[%clk 0:02:59.5]} 2. c4 {[%clk 0:03:00.6]}
2... g6 {[%clk 0:02:58.3]} 3. Nc3 {[%clk 0:03:00.4]} 3... d5 {[%clk 0:02:58.5]}
4. Bf4 {[%clk 0:02:59.8]} 4... Bg7 {[%clk 0:02:55.4]} 5. e3 {[%clk 0:02:58.5]}
5... O-O {[%clk 0:02:54.3]} 6. Rc1 {[%clk 0:02:57.3]} 6... c6 {[%clk 0:02:53.6]}
7. Nf3 {[%clk 0:02:56.5]} 7... Nh5 {[%clk 0:02:52.7]} 8. Be5 {[%clk 0:02:55.6]}
8... Bxe5 {[%clk 0:02:51.6]} 9. dxe5 {[%clk 0:02:55.2]} 9... e6 {[%clk
0:02:50.3]} 10. Qc2 {[%clk 0:02:49.8]} 10... Nd7 {[%clk 0:02:47.7]} 11. Be2
{[%clk 0:02:49.4]} 11... Qc7 {[%clk 0:02:46.3]} 12. cxd5 {[%clk 0:02:46.3]}
12... cxd5 {[%clk 0:02:42.8]} 13. Nb5 {[%clk 0:02:45.8]} 13... Qa5+ {[%clk
0:02:35.5]} 14. Qc3 {[%clk 0:02:39]} 14... Qxc3+ {[%clk 0:02:30.5]} 15. Rxc3
{[%clk 0:02:36.1]} 15... a6 {[%clk 0:02:30.8]} 16. Nd6 {[%clk 0:02:35.5]} 16...
Ng7 {[%clk 0:02:24.3]} 17. O-O {[%clk 0:02:34.4]} 17... Nf5 {[%clk 0:02:24.6]}
18. Rfc1 {[%clk 0:02:22.5]} 18... Nxd6 {[%clk 0:02:23.7]} 19. exd6 {[%clk
0:02:22.4]} 19... b5 {[%clk 0:02:04]} 20. Rc7 {[%clk 0:02:22.1]} 20... Nb6
{[%clk 0:01:58.8]} 21. Ne5 {[%clk 0:02:17.8]} 21... f6 {[%clk 0:01:46.3]} 22.
Nc6 {[%clk 0:02:06.3]} 22... Bd7 {[%clk 0:01:35]} 23. Ne7+ {[%clk 0:02:02.1]}
23... Kh8 {[%clk 0:01:29.1]} 24. h4 {[%clk 0:02:01.5]} 24... e5 {[%clk
0:01:23.9]} 25. h5 {[%clk 0:02:00.3]} 25... Rf7 {[%clk 0:01:17.9]} 26. hxg6
{[%clk 0:01:54.5]} 26... Rxe7 {[%clk 0:01:15.6]} 27. dxe7 {[%clk 0:01:52.9]}
27... hxg6 {[%clk 0:01:16]} 28. a4 {[%clk 0:01:39]} 28... bxa4 {[%clk
0:01:12.5]} 29. Bxa6 {[%clk 0:01:36.7]} 29... Rxa6 {[%clk 0:01:09]} 30. Rxd7
{[%clk 0:01:35]} 1-0

[Event "*** Titled Tuesday Blitz"]
[Site "Chess.com"]
[Date "2020.12.29"]
[Round "6"]
[White "karinachess1"]
[Black "GM_Crest"]
[Result "0-1"]
[WhiteElo "2497"]
[BlackElo "2686"]
[TimeControl "180+1"]
[EndTime "11:03:42 PST"]
[Termination "GM_Crest won on time"]

1. Nf3 {[%clk 0:03:00.9]} 1... Nf6 {[%clk 0:02:57.9]} 2. c4 {[%clk 0:02:59.7]}
2... c5 {[%clk 0:02:57.5]} 3. Nc3 {[%clk 0:02:57.3]} 3... e6 {[%clk 0:02:56.6]}
4. d4 {[%clk 0:02:50.9]} 4... cxd4 {[%clk 0:02:56.3]} 5. Nxd4 {[%clk 0:02:51.8]}
5... a6 {[%clk 0:02:56.6]} 6. g3 {[%clk 0:02:47.9]} 6... Qc7 {[%clk 0:02:56.8]}
7. Bg2 {[%clk 0:02:30.5]} 7... Qxc4 {[%clk 0:02:56.3]} 8. O-O {[%clk 0:02:23]}
8... Nc6 {[%clk 0:02:56.2]} 9. Nc2 {[%clk 0:02:12.9]} 9... d5 {[%clk 0:02:54.1]}
10. Bd2 {[%clk 0:02:07.6]} 10... Be7 {[%clk 0:02:52.2]} 11. Rc1 {[%clk
0:01:57.2]} 11... O-O {[%clk 0:02:51.8]} 12. h3 {[%clk 0:01:29.5]} 12... Rd8
{[%clk 0:02:43.1]} 13. b3 {[%clk 0:01:29]} 13... Qc5 {[%clk 0:02:43.1]} 14. Na4
{[%clk 0:01:09.7]} 14... Qa7 {[%clk 0:02:42.7]} 15. Qe1 {[%clk 0:00:37.6]} 15...
h6 {[%clk 0:02:36.5]} 16. Be3 {[%clk 0:00:19.8]} 16... d4 {[%clk 0:02:36]} 17.
Bd2 {[%clk 0:00:20.1]} 17... e5 {[%clk 0:02:35.7]} 18. Nb2 {[%clk 0:00:19]}
18... Bf5 {[%clk 0:02:33.6]} 19. Nc4 {[%clk 0:00:18.1]} 19... Ne4 {[%clk
0:02:33.7]} 20. g4 {[%clk 0:00:17.3]} 20... Bh7 {[%clk 0:02:32.4]} 21. Qd1
{[%clk 0:00:06]} 21... Rac8 {[%clk 0:02:30.5]} 22. Be1 {[%clk 0:00:06.1]} 22...
Bg5 {[%clk 0:02:14.3]} 23. Ra1 {[%clk 0:00:02.8]} 23... Qc5 {[%clk 0:02:07.8]}
0-1

[Event "*** Titled Tuesday Blitz"]
[Site "Chess.com"]
[Date "2020.12.29"]
[Round "6"]
[White "Kazmin_Dmitrij"]
[Black "akanga001"]
[Result "1-0"]
[WhiteElo "2255"]
[BlackElo "1951"]
[TimeControl "180+1"]
[EndTime "11:03:56 PST"]
[Termination "Kazmin_Dmitrij won by resignation"]

1. e4 {[%clk 0:03:00.9]} 1... c6 {[%clk 0:02:59.3]} 2. d4 {[%clk 0:03:00.3]}
2... d5 {[%clk 0:03:00.2]} 3. e5 {[%clk 0:03:00.3]} 3... c5 {[%clk 0:02:59.7]}
4. dxc5 {[%clk 0:02:58.2]} 4... e6 {[%clk 0:02:59.6]} 5. Be3 {[%clk 0:02:54.3]}
5... Ne7 {[%clk 0:02:58]} 6. c3 {[%clk 0:02:52.6]} 6... Ng6 {[%clk 0:02:56.4]}
7. Bd4 {[%clk 0:02:51.7]} 7... Nc6 {[%clk 0:02:55.3]} 8. Bb5 {[%clk 0:02:45.4]}
8... a6 {[%clk 0:02:52.8]} 9. Bxc6+ {[%clk 0:02:45.2]} 9... bxc6 {[%clk
0:02:53.7]} 10. Nf3 {[%clk 0:02:40.5]} 10... Be7 {[%clk 0:02:41.2]} 11. Nbd2
{[%clk 0:02:37.4]} 11... O-O {[%clk 0:02:40.8]} 12. b4 {[%clk 0:02:34.5]} 12...
Qc7 {[%clk 0:02:40.5]} 13. O-O {[%clk 0:02:25.4]} 13... a5 {[%clk 0:02:38.8]}
14. a3 {[%clk 0:02:24.1]} 14... Ba6 {[%clk 0:02:37.9]} 15. Re1 {[%clk
0:02:23.9]} 15... f6 {[%clk 0:02:38]} 16. exf6 {[%clk 0:02:21.6]} 16... Bxf6
{[%clk 0:02:36.3]} 17. Rxe6 {[%clk 0:02:18.5]} 17... Nf4 {[%clk 0:02:33.9]} 18.
Re3 {[%clk 0:01:57.7]} 18... Rae8 {[%clk 0:02:24.5]} 19. Bxf6 {[%clk 0:01:52.1]}
19... gxf6 {[%clk 0:02:17.2]} 20. Nd4 {[%clk 0:01:47.2]} 20... Qg7 {[%clk
0:02:15.5]} 21. Rg3 {[%clk 0:01:46.1]} 21... Ng6 {[%clk 0:02:00.3]} 22. h4
{[%clk 0:01:37.5]} 22... h5 {[%clk 0:01:37.8]} 23. Qxh5 {[%clk 0:01:35.4]} 23...
Kf7 {[%clk 0:01:38.3]} 24. Nf5 {[%clk 0:01:27.3]} 24... Rh8 {[%clk 0:01:14.2]}
25. Nxg7 {[%clk 0:01:25.8]} 25... Rxh5 {[%clk 0:00:39.7]} 26. Nxh5 {[%clk
0:01:25.5]} 1-0

[Event "*** Titled Tuesday Blitz"]
[Site "Chess.com"]
[Date "2020.12.29"]
[Round "6"]
[White "onnoelgersma"]
[Black "BikingBrian"]
[Result "1-0"]
[WhiteElo "2433"]
[BlackElo "2264"]
[TimeControl "180+1"]
[EndTime "11:04:02 PST"]
[Termination "onnoelgersma won on time"]

1. e4 {[%clk 0:02:31.8]} 1... c5 {[%clk 0:02:58.3]} 2. Nf3 {[%clk 0:02:32]} 2...
g6 {[%clk 0:02:58.4]} 3. c3 {[%clk 0:02:31.4]} 3... Bg7 {[%clk 0:02:58]} 4. d4
{[%clk 0:02:31.7]} 4... cxd4 {[%clk 0:02:58.9]} 5. cxd4 {[%clk 0:02:32.4]} 5...
d5 {[%clk 0:02:59.4]} 6. e5 {[%clk 0:02:32.8]} 6... Bg4 {[%clk 0:02:59.6]} 7.
Nbd2 {[%clk 0:02:32.7]} 7... Nc6 {[%clk 0:02:58.9]} 8. Bb5 {[%clk 0:02:31.9]}
8... e6 {[%clk 0:02:52.5]} 9. O-O {[%clk 0:02:28.2]} 9... Ne7 {[%clk 0:02:52.3]}
10. h3 {[%clk 0:02:26.1]} 10... Bxf3 {[%clk 0:02:51.9]} 11. Nxf3 {[%clk
0:02:27]} 11... O-O {[%clk 0:02:51.9]} 12. Bg5 {[%clk 0:02:20.3]} 12... Qb6
{[%clk 0:02:50.6]} 13. Bxc6 {[%clk 0:02:19.2]} 13... Nxc6 {[%clk 0:02:50.2]} 14.
Qd2 {[%clk 0:02:19]} 14... Rac8 {[%clk 0:02:38.3]} 15. Rac1 {[%clk 0:02:12.9]}
15... Na5 {[%clk 0:02:37]} 16. b3 {[%clk 0:02:02.6]} 16... Nc6 {[%clk
0:00:19.7]} 17. h4 {[%clk 0:01:54.5]} 17... Rc7 {[%clk 0:00:17.9]} 18. Bh6
{[%clk 0:01:46.4]} 18... Rfc8 {[%clk 0:00:17.7]} 19. h5 {[%clk 0:01:32.9]} 1-0

[Event "*** Titled Tuesday Blitz"]
[Site "Chess.com"]
[Date "2020.12.29"]
[Round "6"]
[White "Kislov_Oleg"]
[Black "1g41-0"]
[Result "1-0"]
[WhiteElo "2454"]
[BlackElo "2605"]
[TimeControl "180+1"]
[EndTime "11:04:23 PST"]
[Termination "Kislov_Oleg won by resignation"]

1. e4 {[%clk 0:03:00.9]} 1... e5 {[%clk 0:03:00]} 2. Nf3 {[%clk 0:03:00.8]} 2...
Nc6 {[%clk 0:03:00.6]} 3. d4 {[%clk 0:03:00.6]} 3... exd4 {[%clk 0:02:58.9]} 4.
Nxd4 {[%clk 0:03:01.5]} 4... Nf6 {[%clk 0:02:59.2]} 5. Nc3 {[%clk 0:03:01.5]}
5... Bb4 {[%clk 0:02:58.3]} 6. Nxc6 {[%clk 0:03:01.3]} 6... bxc6 {[%clk
0:02:59.2]} 7. Bd3 {[%clk 0:03:01.9]} 7... d5 {[%clk 0:02:59.1]} 8. exd5 {[%clk
0:03:02.1]} 8... O-O {[%clk 0:02:59.6]} 9. O-O {[%clk 0:03:01.7]} 9... cxd5
{[%clk 0:02:59.5]} 10. Bg5 {[%clk 0:02:59.1]} 10... c6 {[%clk 0:02:52.3]} 11.
Qf3 {[%clk 0:02:58.8]} 11... Bd6 {[%clk 0:02:52.1]} 12. Rfe1 {[%clk 0:02:51.8]}
12... Rb8 {[%clk 0:02:46.2]} 13. Na4 {[%clk 0:02:40.1]} 13... Rb4 {[%clk
0:02:39.9]} 14. b3 {[%clk 0:02:23.8]} 14... Be6 {[%clk 0:02:34.5]} 15. h3 {[%clk
0:02:11.4]} 15... h6 {[%clk 0:02:24.1]} 16. Be3 {[%clk 0:02:07.9]} 16... d4
{[%clk 0:02:04.9]} 17. Bd2 {[%clk 0:02:04.2]} 17... Bd5 {[%clk 0:01:51.3]} 18.
Qd1 {[%clk 0:01:48.1]} 18... Rb7 {[%clk 0:01:50.6]} 19. Nb2 {[%clk 0:01:43.6]}
19... Bb8 {[%clk 0:01:45.7]} 20. Nc4 {[%clk 0:01:38.1]} 20... Qc7 {[%clk
0:01:32]} 21. f4 {[%clk 0:01:32.4]} 21... Qd8 {[%clk 0:01:07.6]} 22. Qe2 {[%clk
0:01:30.1]} 22... Re8 {[%clk 0:01:04.1]} 23. Qf2 {[%clk 0:01:29]} 23... c5
{[%clk 0:00:58.2]} 24. Rxe8+ {[%clk 0:01:27]} 24... Qxe8 {[%clk 0:00:59.1]} 25.
Re1 {[%clk 0:01:27.1]} 25... Re7 {[%clk 0:00:59.8]} 26. Rxe7 {[%clk 0:01:07.2]}
26... Qxe7 {[%clk 0:01:00.7]} 27. c3 {[%clk 0:01:01.2]} 27... Qb7 {[%clk
0:00:47.7]} 28. cxd4 {[%clk 0:00:57.3]} 28... cxd4 {[%clk 0:00:48.6]} 29. Qxd4
{[%clk 0:00:55.8]} 29... Bxg2 {[%clk 0:00:47.4]} 30. Qd8+ {[%clk 0:00:55.5]} 1-0

[Event "*** Titled Tuesday Blitz"]
[Site "Chess.com"]
[Date "2020.12.29"]
[Round "6"]
[White "Onischuk_V"]
[Black "Skatchkov_V"]
[Result "1-0"]
[WhiteElo "2806"]
[BlackElo "2520"]
[TimeControl "180+1"]
[EndTime "11:04:27 PST"]
[Termination "Onischuk_V won by resignation"]

1. e4 {[%clk 0:02:59.3]} 1... e5 {[%clk 0:02:59.3]} 2. Nf3 {[%clk 0:02:59.1]}
2... d5 {[%clk 0:02:59.8]} 3. Nc3 {[%clk 0:02:50.6]} 3... d4 {[%clk 0:02:58.6]}
4. Ne2 {[%clk 0:02:49.2]} 4... Bd6 {[%clk 0:02:58.8]} 5. d3 {[%clk 0:02:46.9]}
5... c5 {[%clk 0:02:55.5]} 6. g3 {[%clk 0:02:47.1]} 6... Nc6 {[%clk 0:02:55.8]}
7. Bg2 {[%clk 0:02:47.6]} 7... Nge7 {[%clk 0:02:50]} 8. O-O {[%clk 0:02:47.5]}
8... Ng6 {[%clk 0:02:50.2]} 9. h4 {[%clk 0:02:41.9]} 9... h5 {[%clk 0:02:28.5]}
10. Kh1 {[%clk 0:02:39.5]} 10... Bg4 {[%clk 0:02:12.7]} 11. Nh2 {[%clk
0:02:37.5]} 11... Be6 {[%clk 0:02:10.8]} 12. Ng1 {[%clk 0:02:36]} 12... Qd7
{[%clk 0:02:10.6]} 13. f4 {[%clk 0:02:09.8]} 13... exf4 {[%clk 0:01:55.3]} 14.
gxf4 {[%clk 0:02:09.9]} 14... f5 {[%clk 0:01:39.7]} 15. Qe1 {[%clk 0:01:58.9]}
15... O-O-O {[%clk 0:01:38.5]} 16. e5 {[%clk 0:01:56.3]} 16... Be7 {[%clk
0:01:36.3]} 17. Nhf3 {[%clk 0:01:55.9]} 17... Nb4 {[%clk 0:01:23]} 18. Qf2
{[%clk 0:01:51.5]} 18... Nd5 {[%clk 0:01:18.3]} 19. Nh3 {[%clk 0:01:50.9]} 19...
Bf8 {[%clk 0:00:52.7]} 20. Nfg5 {[%clk 0:01:49]} 20... Be7 {[%clk 0:00:45.4]}
21. Bd2 {[%clk 0:01:45.2]} 21... Bxg5 {[%clk 0:00:44.4]} 22. Nxg5 {[%clk
0:01:44.2]} 22... Nge7 {[%clk 0:00:45.1]} 23. c4 {[%clk 0:01:42.1]} 23... Nc7
{[%clk 0:00:37.4]} 24. b4 {[%clk 0:01:41.2]} 24... cxb4 {[%clk 0:00:24]} 25.
Bxb4 {[%clk 0:01:40.3]} 25... Ng8 {[%clk 0:00:24.9]} 26. Bd6 {[%clk 0:01:39.3]}
26... Ne8 {[%clk 0:00:20]} 27. c5 {[%clk 0:01:38.7]} 27... Nxd6 {[%clk 0:00:16]}
28. cxd6 {[%clk 0:01:38.5]} 28... Kb8 {[%clk 0:00:15.3]} 29. Rab1 {[%clk
0:01:38.5]} 29... b6 {[%clk 0:00:14.7]} 30. Qf3 {[%clk 0:01:38.7]} 1-0

[Event "*** Titled Tuesday Blitz"]
[Site "Chess.com"]
[Date "2020.12.29"]
[Round "6"]
[White "gahryman"]
[Black "jerry_77"]
[Result "1-0"]
[WhiteElo "2681"]
[BlackElo "2495"]
[TimeControl "180+1"]
[EndTime "11:04:34 PST"]
[Termination "gahryman won by resignation"]

1. e4 {[%clk 0:03:00.9]} 1... c6 {[%clk 0:02:58.5]} 2. d4 {[%clk 0:03:00.5]}
2... d5 {[%clk 0:02:59.4]} 3. exd5 {[%clk 0:03:01.4]} 3... cxd5 {[%clk
0:02:58.6]} 4. Bd3 {[%clk 0:03:02.3]} 4... Nc6 {[%clk 0:02:59]} 5. c3 {[%clk
0:03:02.7]} 5... Nf6 {[%clk 0:02:59.7]} 6. Bf4 {[%clk 0:03:02.8]} 6... g6 {[%clk
0:03:00.2]} 7. Nf3 {[%clk 0:03:02.5]} 7... Bf5 {[%clk 0:03:00.5]} 8. O-O {[%clk
0:03:01.7]} 8... e6 {[%clk 0:03:00.3]} 9. Re1 {[%clk 0:03:00]} 9... Qb6 {[%clk
0:03:00.8]} 10. Bxf5 {[%clk 0:02:56.6]} 10... gxf5 {[%clk 0:03:01.7]} 11. Qb3
{[%clk 0:02:55.9]} 11... Be7 {[%clk 0:03:01.3]} 12. Be5 {[%clk 0:02:53.4]} 12...
Rg8 {[%clk 0:03:00]} 13. Bxf6 {[%clk 0:02:52.8]} 13... Bxf6 {[%clk 0:03:00.9]}
14. Nbd2 {[%clk 0:02:53.1]} 14... Be7 {[%clk 0:02:52.8]} 15. Rac1 {[%clk
0:02:34]} 15... Na5 {[%clk 0:02:35.6]} 16. Qa4+ {[%clk 0:02:32.5]} 16... Nc6
{[%clk 0:02:18.8]} 17. c4 {[%clk 0:02:32.2]} 17... Qb4 {[%clk 0:02:14.5]} 18.
Qc2 {[%clk 0:02:23.4]} 18... O-O-O {[%clk 0:02:08.4]} 19. a3 {[%clk 0:02:20.8]}
19... Qb6 {[%clk 0:02:04.9]} 20. b4 {[%clk 0:02:18.3]} 20... Kb8 {[%clk
0:01:55.3]} 21. c5 {[%clk 0:02:18.2]} 21... Qa6 {[%clk 0:01:51.9]} 22. Rb1
{[%clk 0:01:55.8]} 22... b5 {[%clk 0:01:45.4]} 23. Qd3 {[%clk 0:01:50]} 23...
Qb7 {[%clk 0:01:24.3]} 24. a4 {[%clk 0:01:46.5]} 24... a6 {[%clk 0:01:14.1]} 25.
axb5 {[%clk 0:01:46.4]} 25... axb5 {[%clk 0:01:15]} 26. Nb3 {[%clk 0:01:44.8]}
26... Kc7 {[%clk 0:01:14.4]} 27. Na5 {[%clk 0:01:42.7]} 27... Qa6 {[%clk
0:01:10.2]} 28. Nxc6 {[%clk 0:01:41.5]} 28... Qxc6 {[%clk 0:01:11.1]} 29. Ne5
{[%clk 0:01:42.4]} 29... Qb7 {[%clk 0:01:10.6]} 30. Nxf7 {[%clk 0:01:38]} 30...
Rg7 {[%clk 0:01:04]} 31. Rxe6 {[%clk 0:01:22.9]} 31... Rxf7 {[%clk 0:01:03.6]}
32. Rb6 {[%clk 0:01:22.9]} 32... Qa7 {[%clk 0:00:59]} 33. Qxb5 {[%clk
0:01:22.3]} 33... Ra8 {[%clk 0:00:56]} 34. Qc6+ {[%clk 0:01:14.2]} 34... Kd8
{[%clk 0:00:55.6]} 35. Rb7 {[%clk 0:01:14.5]} 35... Qa4 {[%clk 0:00:55.7]} 36.
b5 {[%clk 0:00:55]} 1-0

[Event "*** Titled Tuesday Blitz"]
[Site "Chess.com"]
[Date "2020.12.29"]
[Round "6"]
[White "exoticprincess"]
[Black "1977Ivan"]
[Result "1-0"]
[WhiteElo "2895"]
[BlackElo "2704"]
[TimeControl "180+1"]
[EndTime "11:04:40 PST"]
[Termination "exoticprincess won by resignation"]

1. d4 {[%clk 0:03:00.9]} 1... d5 {[%clk 0:02:59.9]} 2. Nc3 {[%clk 0:03:01.8]}
2... Nf6 {[%clk 0:02:57.9]} 3. Bf4 {[%clk 0:03:02.3]} 3... g6 {[%clk 0:02:58.1]}
4. Qd2 {[%clk 0:03:02]} 4... c6 {[%clk 0:02:49.8]} 5. Nf3 {[%clk 0:02:58.8]}
5... Nbd7 {[%clk 0:02:42.5]} 6. h4 {[%clk 0:02:54.5]} 6... b5 {[%clk 0:02:41]}
7. a3 {[%clk 0:02:53.8]} 7... Nb6 {[%clk 0:02:34.7]} 8. b3 {[%clk 0:02:50]} 8...
a5 {[%clk 0:02:23.3]} 9. Ne5 {[%clk 0:02:40.4]} 9... Bd7 {[%clk 0:02:20.7]} 10.
e3 {[%clk 0:02:19.4]} 10... b4 {[%clk 0:02:11.6]} 11. axb4 {[%clk 0:02:19.3]}
11... axb4 {[%clk 0:02:12.2]} 12. Rxa8 {[%clk 0:02:19.8]} 12... Qxa8 {[%clk
0:02:12.5]} 13. Nd1 {[%clk 0:02:20.4]} 13... e6 {[%clk 0:02:00.8]} 14. Bd3
{[%clk 0:02:16.9]} 14... c5 {[%clk 0:01:15.1]} 15. O-O {[%clk 0:02:14.3]} 15...
Nh5 {[%clk 0:01:14.1]} 16. Bh2 {[%clk 0:02:12.7]} 16... Be7 {[%clk 0:01:06.6]}
17. Be2 {[%clk 0:02:04]} 17... Nf6 {[%clk 0:01:05.4]} 18. f3 {[%clk 0:02:02.1]}
18... O-O {[%clk 0:01:04.6]} 19. dxc5 {[%clk 0:01:54.6]} 19... Bxc5 {[%clk
0:01:04]} 20. Nd3 {[%clk 0:01:55.2]} 20... Be7 {[%clk 0:01:02.6]} 21. Nxb4
{[%clk 0:01:53.5]} 21... Rc8 {[%clk 0:00:59.7]} 22. Nd3 {[%clk 0:01:44.7]} 22...
Be8 {[%clk 0:00:54.5]} 23. N1f2 {[%clk 0:01:41.7]} 23... Nfd7 {[%clk 0:00:53.4]}
24. h5 {[%clk 0:01:41]} 24... Qa2 {[%clk 0:00:47.1]} 25. Bd1 {[%clk 0:01:37.6]}
25... gxh5 {[%clk 0:00:38.4]} 26. e4 {[%clk 0:01:32.8]} 26... Nf8 {[%clk
0:00:23.2]} 27. Nf4 {[%clk 0:01:18.7]} 27... Ng6 {[%clk 0:00:19.2]} 28. Nxh5
{[%clk 0:01:17.5]} 28... Qa7 {[%clk 0:00:16.5]} 29. Qh6 {[%clk 0:01:15.1]} 1-0

[Event "*** Titled Tuesday Blitz"]
[Site "Chess.com"]
[Date "2020.12.29"]
[Round "6"]
[White "javirec"]
[Black "Maksimus1998"]
[Result "1-0"]
[WhiteElo "2392"]
[BlackElo "2529"]
[TimeControl "180+1"]
[EndTime "11:04:45 PST"]
[Termination "javirec won by resignation"]

1. c4 {[%clk 0:03:00.5]} 1... e5 {[%clk 0:02:57.5]} 2. g3 {[%clk 0:03:01]} 2...
h5 {[%clk 0:02:55.8]} 3. h4 {[%clk 0:03:00.6]} 3... c6 {[%clk 0:02:51.1]} 4. Bg2
{[%clk 0:02:58.1]} 4... d5 {[%clk 0:02:50.9]} 5. cxd5 {[%clk 0:02:59]} 5... cxd5
{[%clk 0:02:51.4]} 6. d4 {[%clk 0:02:59.9]} 6... e4 {[%clk 0:02:50.2]} 7. Nc3
{[%clk 0:02:59.9]} 7... Nc6 {[%clk 0:02:50.3]} 8. Nh3 {[%clk 0:03:00.1]} 8...
Bg4 {[%clk 0:02:45.9]} 9. Nf4 {[%clk 0:03:00.1]} 9... Bb4 {[%clk 0:02:43.6]} 10.
Be3 {[%clk 0:02:55.5]} 10... Nge7 {[%clk 0:02:42.5]} 11. Rc1 {[%clk 0:02:55.2]}
11... Qa5 {[%clk 0:02:41.6]} 12. Qb3 {[%clk 0:02:54.9]} 12... O-O-O {[%clk
0:02:35]} 13. O-O {[%clk 0:02:54.5]} 13... Kb8 {[%clk 0:02:34.4]} 14. a3 {[%clk
0:02:52.2]} 14... Bxc3 {[%clk 0:02:29.7]} 15. Rxc3 {[%clk 0:02:35.9]} 15... f6
{[%clk 0:02:28.2]} 16. Rfc1 {[%clk 0:02:27.6]} 16... Ka8 {[%clk 0:02:25.6]} 17.
Rc5 {[%clk 0:02:26.4]} 17... Qb6 {[%clk 0:02:20.7]} 18. Rb5 {[%clk 0:02:16.3]}
18... Qc7 {[%clk 0:02:19]} 19. Nxd5 {[%clk 0:02:13.4]} 19... Nxd5 {[%clk
0:02:18.7]} 20. Rxd5 {[%clk 0:02:14.3]} 20... g5 {[%clk 0:02:03.1]} 21. Rxd8+
{[%clk 0:02:03.4]} 21... Qxd8 {[%clk 0:02:04]} 22. Bxe4 {[%clk 0:02:00.1]} 22...
Bd7 {[%clk 0:01:56.5]} 23. d5 {[%clk 0:01:08.2]} 23... Na5 {[%clk 0:01:55.8]}
24. Qc3 {[%clk 0:01:03]} 24... gxh4 {[%clk 0:01:53.5]} 25. Qd4 {[%clk
0:00:51.4]} 25... Qb6 {[%clk 0:01:32.6]} 26. Qxb6 {[%clk 0:00:43.2]} 26... axb6
{[%clk 0:01:33.5]} 27. Bxb6 {[%clk 0:00:42.7]} 27... Nb3 {[%clk 0:01:33.5]} 28.
Rc3 {[%clk 0:00:41.8]} 28... Nd2 {[%clk 0:01:32.4]} 29. Bg2 {[%clk 0:00:33.9]}
29... hxg3 {[%clk 0:01:32.2]} 30. fxg3 {[%clk 0:00:31.7]} 30... Re8 {[%clk
0:01:31.6]} 31. d6 {[%clk 0:00:25.9]} 31... Ne4 {[%clk 0:01:28.2]} 32. Rc7
{[%clk 0:00:18.3]} 32... Bc6 {[%clk 0:01:23]} 33. d7 {[%clk 0:00:16.4]} 33...
Bxd7 {[%clk 0:01:22.9]} 34. Rxd7 {[%clk 0:00:16.1]} 34... Kb8 {[%clk 0:01:23.7]}
35. Bxe4 {[%clk 0:00:15.2]} 1-0

[Event "*** Titled Tuesday Blitz"]
[Site "Chess.com"]
[Date "2020.12.29"]
[Round "6"]
[White "Training_Day"]
[Black "Carnivoras"]
[Result "1-0"]
[WhiteElo "2395"]
[BlackElo "2583"]
[TimeControl "180+1"]
[EndTime "11:04:50 PST"]
[Termination "Training_Day won by resignation"]

1. e4 {[%clk 0:03:00.9]} 1... e5 {[%clk 0:02:58.4]} 2. f4 {[%clk 0:02:57.8]}
2... d5 {[%clk 0:02:56.5]} 3. exd5 {[%clk 0:02:57.2]} 3... exf4 {[%clk 0:02:27]}
4. Nf3 {[%clk 0:02:56.2]} 4... Nf6 {[%clk 0:02:25.8]} 5. Bb5+ {[%clk 0:02:55.7]}
5... Bd7 {[%clk 0:02:24.9]} 6. Bxd7+ {[%clk 0:02:50.5]} 6... Qxd7 {[%clk
0:02:22.1]} 7. O-O {[%clk 0:02:30.2]} 7... Nxd5 {[%clk 0:02:20.8]} 8. c4 {[%clk
0:02:29.6]} 8... Nf6 {[%clk 0:02:09.3]} 9. d4 {[%clk 0:02:27.7]} 9... Be7 {[%clk
0:02:07.3]} 10. Bxf4 {[%clk 0:02:26.1]} 10... O-O {[%clk 0:02:07.2]} 11. Ne5
{[%clk 0:02:21.8]} 11... Qd8 {[%clk 0:02:01.2]} 12. Nc3 {[%clk 0:02:17.6]} 12...
Nbd7 {[%clk 0:02:00.4]} 13. Qb3 {[%clk 0:02:06.1]} 13... Nxe5 {[%clk 0:00:29.9]}
14. Bxe5 {[%clk 0:02:04.7]} 14... Rb8 {[%clk 0:00:28.5]} 15. Rad1 {[%clk
0:01:55.7]} 15... Nd7 {[%clk 0:00:27.9]} 16. Bg3 {[%clk 0:01:52.3]} 16... a6
{[%clk 0:00:27.7]} 17. Nd5 {[%clk 0:01:46.7]} 17... Bd6 {[%clk 0:00:27.8]} 18.
Bxd6 {[%clk 0:01:41.5]} 18... cxd6 {[%clk 0:00:28.7]} 19. Qg3 {[%clk 0:01:39.8]}
19... Kh8 {[%clk 0:00:27.6]} 20. Qxd6 {[%clk 0:01:38.2]} 20... b5 {[%clk
0:00:26.9]} 21. c5 {[%clk 0:01:22.4]} 21... f5 {[%clk 0:00:23.9]} 22. Rfe1
{[%clk 0:01:13.6]} 22... f4 {[%clk 0:00:20.5]} 23. c6 {[%clk 0:01:08.2]} 23...
f3 {[%clk 0:00:19.9]} 24. gxf3 {[%clk 0:01:02.4]} 24... Qg5+ {[%clk 0:00:19.9]}
25. Kh1 {[%clk 0:00:59.4]} 25... Nf6 {[%clk 0:00:19.3]} 26. Nxf6 {[%clk
0:00:57.8]} 26... Rbd8 {[%clk 0:00:18.9]} 27. Nd7 {[%clk 0:00:49.5]} 1-0